[Event "106th British-ch Major 2019"]
[Site "Torquay"]
[Date "2019.07.31"]
[Round "5.14"]
[White "Forster, Matthew"]
[Black "Menadue, Jeremy Fs"]
[Result "1-0"]
[ECO "A11"]
[WhiteElo "1825"]
[BlackElo "2016"]
[Annotator "NA"]
[PlyCount "87"]
[EventDate "2019.07.27"]
[EventType "swiss"]
[EventCountry "GBR"]
[SourceTitle "playchess.com"]
[Source "ChessBase"]
[SourceQuality "1"]
[TimeControl "40/5400+30:1800+30"]

1. c4 {[%emt 0:00:00]} Nf6 {[%emt 0:00:01]} 2. g3 {[%emt 0:00:00]} c6 {[%emt 0:00:14]} 3. Bg2 {[%emt 0:00:05]} d5 {[%emt 0:00:25]} 4. Nf3 {[%emt 0:00:10]} Bf5 {[%emt 0:00:25]} 5. cxd5 {[%emt 0:01:06]} cxd5 {[%emt 0:00:19]} 6. Qb3 {[%emt 0:00:31]} Qc8 {[%emt 0:00:17]} 7. Nc3 {[%emt 0:00:14]} e6 {[%emt 0:00:11]} 8. d3 {[%emt 0:00:58]} Nc6 {[%emt 0:01:08]} 9. O-O {[%emt 0:00:33]} Be7 {[%emt 0:00:48]} 10. Bf4 {[%emt 0:02:55]} O-O {[%emt 0:00:47]} 11. Rac1 {[%emt 0:01:49]} Qd7 {[%emt 0:04:09]} 12. Ne5 {[%emt 0:07:30]} Nxe5 {[%emt 0:00:08]} 13. Bxe5 {[%emt 0:00:17]} Rac8 {[%emt 0:19:43]} 14. e4 {[%emt 0:03:18]} dxe4 {[%emt 0:04:16]} 15. dxe4 {[%emt 0:00:18]} Bg4 {[%emt 0:07:54]} 16. h3 {[%emt 0:02:36]} Bh5 {[%emt 0:00:28]} 17. g4 {[%emt 0:01:14]} Bg6 {[%emt 0:08:10]} 18. f4 {[%emt 0:10:01]} Rxc3 {[%emt 0:27:42]} 19. Rxc3 {[%emt 0:07:53]} Nxe4 {[%emt 0:00:44]} 20. Rd1 {[%emt 0:02:29]} Qe8 {[%emt 0:01:56]} 21. Rc7 {[%emt 0:07:40]} Bc5+ {[%emt 0:05:40]} 22. Kh2 {[%emt 0:01:29]} Bb6 {[%emt 0:04:32]} 23. Rc4 {[%emt 0:01:16]} Nc5 {[%emt 0:07:04]} 24. Qc3 {[%emt 0:03:02]} Na6 {[%emt 0:02:37]} 25. Bxg7 {[%emt 0:00:39]} Ba5 {[%emt 0:01:06]} 26. Qe5 {[%emt 0:03:25]} f6 {[%emt 0:00:49]} 27. Bxf6 {[%emt 0:01:29]} Bb6 {[%emt 0:00:53]} 28. b4 {[%emt 0:12:58]} Qf7 {[%emt 0:00:14]} 29. g5 {[%emt 0:01:52]} Bc7 {[%emt 0:00:57]} 30. Qc3 {[%emt 0:01:16]} b5 {[%emt 0:00:16]} 31. Rcd4 {[%emt 0:01:31]} Nb8 {[%emt 0:00:09]} 32. Kh1 {[%emt 0:02:31]} h5 {[%emt 0:00:02]} 33. Bc6 {[%emt 0:04:00]} a6 {[%emt 0:00:50]} 34. Rd7 {[%emt 0:03:13]} Be4+ {[%emt 0:00:43]} 35. Kg1 {[%emt 0:00:54]} Bb6+ {[%emt 0:00:13]} 36. Kh2 {[%emt 0:00:33]} Nxc6 {[%emt 0:01:24]} 37. Rxf7 {[%emt 0:00:22]} Rxf7 {[%emt 0:00:01]} 38. Rd6 {[%emt 0:00:38]} Bc7 {[%emt 0:00:36]} 39. Rxc6 {[%emt 0:00:30]} Bxf4+ {[%emt 0:00:02]} 40. Kg1 {[%emt 0:00:16]} Rd7 {[%emt 0:00:18]} 41. Rc8+ {[%emt 0:31:36]} Kf7 {[%emt 0:30:38]} 42. Bh8 {[%emt 0:02:02]} Rd1+ {[%emt 0:00:38]} 43. Kf2 {[%emt 0:00:40]} Rd2+ {[%emt 0:00:18]} 44. Ke1 {[%emt 0:00:28]} 1-0

[Event "106th British-ch Major 2019"]
[Site "Torquay"]
[Date "2019.07.31"]
[Round "5.15"]
[White "Foster, Timothy"]
[Black "Cusick, Peter W"]
[Result "1-0"]
[ECO "A05"]
[WhiteElo "1852"]
[BlackElo "1971"]
[Annotator "NA"]
[PlyCount "101"]
[EventDate "2019.07.27"]
[EventType "swiss"]
[EventCountry "GBR"]
[SourceTitle "playchess.com"]
[Source "ChessBase"]
[SourceQuality "1"]
[TimeControl "40/5400+30:1800+30"]

1. Nf3 {[%emt 0:00:00]} Nf6 {[%emt 0:00:00]} 2. g3 {[%emt 0:00:00]} b5 {[%emt 0:01:36]} 3. Bg2 {[%emt 0:03:55]} Bb7 {[%emt 0:00:15]} 4. O-O {[%emt 0:00:05]} e6 {[%emt 0:01:28]} 5. b3 {[%emt 0:00:45]} Be7 {[%emt 0:00:37]} 6. Bb2 {[%emt 0:00:10]} O-O {[%emt 0:00:23]} 7. d3 {[%emt 0:00:20]} d5 {[%emt 0:01:40]} 8. Nbd2 {[%emt 0:05:20]} c5 {[%emt 0:07:11]} 9. Ne5 {[%emt 0:04:38]} Qc7 {[%emt 0:06:44]} 10. e3 {[%emt 0:00:59]} Nbd7 {[%emt 0:07:21]} 11. Nxd7 {[%emt 0:03:28]} Qxd7 {[%emt 0:05:40]} 12. f4 {[%emt 0:00:39]} Rac8 {[%emt 0:03:36]} 13. Nf3 {[%emt 0:06:46]} Rfd8 {[%emt 0:08:26]} 14. Ne5 {[%emt 0:00:17]} Qc7 {[%emt 0:00:58]} 15. g4 {[%emt 0:15:48]} Nd7 {[%emt 0:03:04]} 16. Nxd7 {[%emt 0:01:35]} Qxd7 {[%emt 0:05:40]} 17. g5 {[%emt 0:06:50]} d4 {[%emt 0:08:31]} 18. e4 {[%emt 0:10:35]} e5 {[%emt 0:04:26]} 19. Qh5 {[%emt 0:00:43]} exf4 {[%emt 0:12:01]} 20. Bh3 {[%emt 0:07:55]} Qc7 {[%emt 0:02:37]} 21. Bxc8 {[%emt 0:00:12]} Bxc8 {[%emt 0:00:05]} 22. Bc1 {[%emt 0:00:58]} g6 {[%emt 0:06:50]} 23. Qh4 {[%emt 0:00:32]} h5 {[%emt 0:00:54]} 24. Bxf4 {[%emt 0:00:21]} Bd6 {[%emt 0:00:33]} 25. Bxd6 {[%emt 0:00:54]} Qxd6 {[%emt 0:00:19]} 26. Rf6 {[%emt 0:02:10]} Be6 {[%emt 0:01:05]} 27. Qf4 {[%emt 0:01:48]} Qd7 {[%emt 0:00:40]} 28. Qe5 {[%emt 0:04:50]} Bh3 {[%emt 0:02:09]} 29. Qg3 {[%emt 0:00:26]} c4 {[%emt 0:00:44]} 30. bxc4 {[%emt 0:00:44]} bxc4 {[%emt 0:00:07]} 31. Rb1 {[%emt 0:00:25]} cxd3 {[%emt 0:00:34]} 32. cxd3 {[%emt 0:00:17]} Kg7 {[%emt 0:02:32]} 33. Rc1 {[%emt 0:05:31]} Rc8 {[%emt 0:01:36]} 34. Rxc8 {[%emt 0:07:14]} Qxc8 {[%emt 0:00:04]} 35. Qf4 {[%emt 0:00:58]} Qb7 {[%emt 0:01:27]} 36. Qc1 {[%emt 0:03:43]} Bg4 {[%emt 0:02:12]} 37. Qc4 {[%emt 0:01:22]} Be6 {[%emt 0:00:41]} 38. Qxd4 {[%emt 0:00:16]} Kg8 {[%emt 0:00:42]} 39. Rf2 {[%emt 0:00:36]} Qb1+ {[%emt 0:00:16]} 40. Kg2 {[%emt 0:00:12]} Qd1 {[%emt 0:00:56]} 41. Qe3 {[%emt 0:33:02]} Qg4+ {[%emt 0:04:54]} 42. Qg3 {[%emt 0:00:00]} Qd1 {[%emt 0:00:35]} 43. Qf3 {[%emt 0:00:00]} Qc1 {[%emt 0:03:46]} 44. h4 {[%emt 0:00:00]} Qc3 {[%emt 0:04:58]} 45. Qe3 {[%emt 0:00:00]} Qa3 {[%emt 0:00:18]} 46. Re2 {[%emt 0:00:00]} Bxa2 {[%emt 0:07:33]} 47. d4 {[%emt 0:00:00]} Qxe3 {[%emt 0:05:41]} 48. Rxe3 {[%emt 0:00:00]} a6 {[%emt 0:00:43]} 49. Rc3 {[%emt 0:00:00]} Kf8 {[%emt 0:01:49]} 50. Kf3 {[%emt 0:00:00]} Bb1 {[%emt 0:03:22]} 51. Ra3 {[%emt 0:00:00]} 1-0

[Event "106th British-ch Major 2019"]
[Site "Torquay"]
[Date "2019.07.31"]
[Round "5.16"]
[White "Ethelontis, Alexandros N"]
[Black "Nayak, Raghav"]
[Result "1-0"]
[ECO "A41"]
[WhiteElo "2154"]
[BlackElo "1906"]
[Annotator "NA"]
[PlyCount "95"]
[EventDate "2019.07.27"]
[EventType "swiss"]
[EventCountry "GBR"]
[SourceTitle "playchess.com"]
[Source "ChessBase"]
[SourceQuality "1"]
[TimeControl "40/5400+30:1800+30"]

1. c4 {[%emt 0:06:03]} e5 {[%emt 0:01:15]} 2. Nc3 {[%emt 0:00:14]} Nc6 {[%emt 0:00:09]} 3. Nf3 {[%emt 0:00:23]} g6 {[%emt 0:05:36]} 4. d4 {[%emt 0:04:29]} d6 {[%emt 0:06:21]} 5. Bg5 {[%emt 0:07:53]} f6 {[%emt 0:01:37]} 6. Bh4 {[%emt 0:06:01]} Bg7 {[%emt 0:06:39]} 7. e3 {[%emt 0:26:59]} Nge7 {[%emt 0:05:06]} 8. dxe5 {[%emt 0:10:51]} dxe5 {[%emt 0:00:44]} 9. Qxd8+ {[%emt 0:00:55]} Nxd8 {[%emt 0:00:26]} 10. Nd5 {[%emt 0:05:56]} Nxd5 {[%emt 0:00:43]} 11. cxd5 {[%emt 0:00:02]} Bd7 {[%emt 0:02:15]} 12. Be2 {[%emt 0:06:24]} Nf7 {[%emt 0:00:27]} 13. Nd2 {[%emt 0:03:42]} Nd6 {[%emt 0:01:43]} 14. e4 {[%emt 0:04:03]} Bh6 {[%emt 0:04:18]} 15. f3 {[%emt 0:01:10]} O-O {[%emt 0:06:56]} 16. Nc4 {[%emt 0:02:00]} Nxc4 {[%emt 0:05:52]} 17. Bxc4 {[%emt 0:00:01]} Be3 {[%emt 0:00:34]} 18. Bf2 {[%emt 0:05:04]} Bxf2+ {[%emt 0:01:33]} 19. Kxf2 {[%emt 0:00:02]} Kg7 {[%emt 0:00:47]} 20. Rac1 {[%emt 0:01:27]} Rac8 {[%emt 0:09:22]} 21. Ke3 {[%emt 0:00:44]} f5 {[%emt 0:03:39]} 22. Rc3 {[%emt 0:01:49]} fxe4 {[%emt 0:00:26]} 23. fxe4 {[%emt 0:00:42]} Rf6 {[%emt 0:01:33]} 24. Rb3 {[%emt 0:01:42]} b6 {[%emt 0:02:01]} 25. Ba6 {[%emt 0:01:02]} Rcf8 {[%emt 0:00:46]} 26. Rc1 {[%emt 0:01:42]} c5 {[%emt 0:02:09]} 27. Be2 {[%emt 0:02:36]} R8f7 {[%emt 0:07:23]} 28. a3 {[%emt 0:00:16]} Kf8 {[%emt 0:02:51]} 29. Rbc3 {[%emt 0:00:26]} Ke7 {[%emt 0:00:27]} 30. b4 {[%emt 0:00:19]} cxb4 {[%emt 0:00:58]} 31. axb4 {[%emt 0:00:02]} Kd6 {[%emt 0:01:10]} 32. b5 {[%emt 0:01:07]} Rf2 {[%emt 0:03:43]} 33. Rg1 {[%emt 0:00:16]} Be8 {[%emt 0:01:37]} 34. Rc8 {[%emt 0:00:48]} Rf8 {[%emt 0:02:28]} 35. Bf3 {[%emt 0:03:46]} Rb2 {[%emt 0:01:08]} 36. Ra1 {[%emt 0:00:15]} Rxb5 {[%emt 0:07:10]} 37. Rxa7 {[%emt 0:00:11]} Rf7 {[%emt 0:02:31]} 38. Rd8+ {[%emt 0:01:19]} Kc5 {[%emt 0:01:10]} 39. Rxf7 {[%emt 0:00:52]} Bxf7 {[%emt 0:00:02]} 40. Rf8 {[%emt 0:00:09]} Rb3+ {[%emt 0:00:43]} 41. Kd2 {[%emt 0:01:45]} Bxd5 {[%emt 0:05:31]} 42. exd5 {[%emt 0:02:43]} Kd4 {[%emt 0:00:12]} 43. Re8 {[%emt 0:05:22]} Re3 {[%emt 0:02:50]} 44. Be2 {[%emt 0:04:37]} e4 {[%emt 0:01:50]} 45. d6 {[%emt 0:00:48]} Ra3 {[%emt 0:00:23]} 46. d7 {[%emt 0:01:07]} e3+ {[%emt 0:00:21]} 47. Ke1 {[%emt 0:01:18]} Ra1+ {[%emt 0:00:36]} 48. Bd1 {[%emt 0:00:07]} 1-0

[Event "106th British-ch Major 2019"]
[Site "Torquay"]
[Date "2019.07.31"]
[Round "5.17"]
[White "Hilton, Tim"]
[Black "Taylor, William J"]
[Result "0-1"]
[ECO "B13"]
[WhiteElo "1892"]
[BlackElo "2062"]
[Annotator "NA"]
[PlyCount "50"]
[EventDate "2019.07.27"]
[EventType "swiss"]
[EventCountry "GBR"]
[SourceTitle "playchess.com"]
[Source "ChessBase"]
[SourceQuality "1"]
[TimeControl "40/5400+30:1800+30"]

1. d4 {[%emt 0:00:00]} Nf6 {[%emt 0:00:00]} 2. Bf4 {[%emt 0:00:00]} d5 {[%emt 0:04:01]} 3. e3 {[%emt 0:00:06]} c5 {[%emt 0:04:55]} 4. Nc3 {[%emt 0:01:50]} cxd4 {[%emt 0:03:12]} 5. exd4 {[%emt 0:01:29]} a6 {[%emt 0:00:23]} 6. Nf3 {[%emt 0:00:06]} Nc6 {[%emt 0:00:13]} 7. h3 {[%emt 0:00:37]} Bf5 {[%emt 0:00:24]} 8. g4 {[%emt 0:03:48]} Be4 {[%emt 0:09:14]} 9. Be2 {[%emt 0:02:18]} e6 {[%emt 0:00:38]} 10. a3 {[%emt 0:04:33]} Bd6 {[%emt 0:03:34]} 11. Be3 {[%emt 0:06:36]} Bg6 {[%emt 0:01:47]} 12. g5 {[%emt 0:02:37]} Ne4 {[%emt 0:09:22]} 13. Nxe4 {[%emt 0:01:25]} Bxe4 {[%emt 0:00:06]} 14. Rg1 {[%emt 0:07:10]} Rc8 {[%emt 0:05:59]} 15. Nd2 {[%emt 0:07:31]} Bh2 {[%emt 0:11:13]} 16. Rg4 {[%emt 0:02:58]} Bf5 {[%emt 0:00:08]} 17. Rg2 {[%emt 0:00:20]} Bd6 {[%emt 0:07:31]} 18. h4 {[%emt 0:07:10]} Nxd4 {[%emt 0:03:06]} 19. Bxd4 {[%emt 0:01:59]} Bxc2 {[%emt 0:00:08]} 20. Bb5+ {[%emt 0:08:34]} axb5 {[%emt 0:00:39]} 21. Qe2 {[%emt 0:00:11]} O-O {[%emt 0:04:07]} 22. Qxb5 {[%emt 0:01:28]} Qc7 {[%emt 0:03:24]} 23. Rc1 {[%emt 0:04:33]} Qc6 {[%emt 0:01:14]} 24. Qe2 {[%emt 0:01:27]} e5 {[%emt 0:01:50]} 25. Bc3 {[%emt 0:00:08]} d4 {[%emt 0:00:59]} 0-1

[Event "106th British-ch Major 2019"]
[Site "Torquay"]
[Date "2019.07.31"]
[Round "5.18"]
[White "Kirupakaran, Vishnu"]
[Black "Balaji, Aaravamudhan"]
[Result "0-1"]
[ECO "C91"]
[WhiteElo "1771"]
[BlackElo "2034"]
[Annotator "NA"]
[PlyCount "56"]
[EventDate "2019.07.27"]
[EventType "swiss"]
[EventCountry "GBR"]
[SourceTitle "playchess.com"]
[Source "ChessBase"]
[SourceQuality "1"]
[TimeControl "40/5400+30:1800+30"]

1. e4 {[%emt 0:01:13]} e5 {[%emt 0:00:00]} 2. Nf3 {[%emt 0:00:08]} Nc6 {[%emt 0:00:00]} 3. Bb5 {[%emt 0:01:09]} a6 {[%emt 0:00:00]} 4. Ba4 {[%emt 0:00:06]} Nf6 {[%emt 0:00:00]} 5. O-O {[%emt 0:00:08]} Be7 {[%emt 0:00:00]} 6. Re1 {[%emt 0:00:05]} b5 {[%emt 0:00:00]} 7. Bb3 {[%emt 0:00:06]} O-O {[%emt 0:00:01]} 8. d4 {[%emt 0:00:47]} d6 {[%emt 0:02:11]} 9. c3 {[%emt 0:00:07]} Bg4 {[%emt 0:01:00]} 10. d5 {[%emt 0:01:19]} Na5 {[%emt 0:00:08]} 11. Bc2 {[%emt 0:00:04]} Qc8 {[%emt 0:00:34]} 12. h3 {[%emt 0:10:14]} Bd7 {[%emt 0:00:05]} 13. Nbd2 {[%emt 0:09:04]} c6 {[%emt 0:01:56]} 14. Nf1 {[%emt 0:01:17]} Qc7 {[%emt 0:17:21]} 15. Ne3 {[%emt 0:25:44]} cxd5 {[%emt 0:17:37]} 16. exd5 {[%emt 0:03:01]} g6 {[%emt 0:03:26]} 17. a4 {[%emt 0:20:10]} Rfc8 {[%emt 0:02:37]} 18. Nd2 {[%emt 0:06:39]} h5 {[%emt 0:23:59]} 19. Qf3 {[%emt 0:02:21]} Nb7 {[%emt 0:02:02]} 20. Qg3 {[%emt 0:02:15]} Bf8 {[%emt 0:05:43]} 21. Qg5 {[%emt 0:11:53]} Bg7 {[%emt 0:03:30]} 22. Ndf1 {[%emt 0:02:05]} Nc5 {[%emt 0:04:38]} 23. axb5 {[%emt 0:00:38]} Nfe4 {[%emt 0:01:37]} 24. Bxe4 {[%emt 0:00:45]} Nxe4 {[%emt 0:00:02]} 25. Qh4 {[%emt 0:00:10]} f5 {[%emt 0:00:08]} 26. b6 {[%emt 0:00:50]} Qxb6 {[%emt 0:03:55]} 27. Nc4 {[%emt 0:00:29]} Rxc4 {[%emt 0:00:31]} 28. Be3 {[%emt 0:00:24]} Qc7 {[%emt 0:01:50]} 0-1

[Event "106th British-ch Major 2019"]
[Site "Torquay"]
[Date "2019.07.31"]
[Round "5.19"]
[White "Akeya-Price, Robert A"]
[Black "Salmons, Calum"]
[Result "1/2-1/2"]
[ECO "E15"]
[WhiteElo "1974"]
[BlackElo "1898"]
[Annotator "NA"]
[PlyCount "86"]
[EventDate "2019.07.27"]
[EventType "swiss"]
[EventCountry "GBR"]
[SourceTitle "playchess.com"]
[Source "ChessBase"]
[SourceQuality "1"]
[TimeControl "40/5400+30:1800+30"]

1. d4 {[%emt 0:00:00]} Nf6 {[%emt 0:00:00]} 2. c4 {[%emt 0:00:00]} e6 {[%emt 0:00:00]} 3. Nf3 {[%emt 0:00:00]} b6 {[%emt 0:00:00]} 4. g3 {[%emt 0:00:07]} Ba6 {[%emt 0:00:06]} 5. b3 {[%emt 0:00:11]} b5 {[%emt 0:00:21]} 6. cxb5 {[%emt 0:01:03]} Bxb5 {[%emt 0:00:07]} 7. Bg2 {[%emt 0:00:48]} d5 {[%emt 0:00:11]} 8. O-O {[%emt 0:00:54]} Nbd7 {[%emt 0:01:48]} 9. Bb2 {[%emt 0:06:27]} Be7 {[%emt 0:01:33]} 10. Nbd2 {[%emt 0:01:01]} O-O {[%emt 0:01:31]} 11. Re1 {[%emt 0:01:12]} c5 {[%emt 0:08:57]} 12. dxc5 {[%emt 0:03:55]} Nxc5 {[%emt 0:05:31]} 13. Nd4 {[%emt 0:01:58]} Qd7 {[%emt 0:06:39]} 14. a4 {[%emt 0:03:53]} Ba6 {[%emt 0:02:21]} 15. b4 {[%emt 0:02:23]} Nce4 {[%emt 0:00:21]} 16. Nxe4 {[%emt 0:01:58]} Nxe4 {[%emt 0:01:11]} 17. b5 {[%emt 0:00:56]} Bb7 {[%emt 0:00:46]} 18. Bxe4 {[%emt 0:04:56]} dxe4 {[%emt 0:00:33]} 19. Nf5 {[%emt 0:00:56]} Rfd8 {[%emt 0:04:52]} 20. Qxd7 {[%emt 0:00:43]} Rxd7 {[%emt 0:00:14]} 21. Nd4 {[%emt 0:14:57]} Bf6 {[%emt 0:29:24]} 22. e3 {[%emt 0:02:16]} Rc8 {[%emt 0:04:42]} 23. Rec1 {[%emt 0:04:02]} Rdc7 {[%emt 0:00:54]} 24. Rd1 {[%emt 0:04:19]} Bd5 {[%emt 0:05:04]} 25. Rd2 {[%emt 0:09:13]} h6 {[%emt 0:06:07]} 26. Ne2 {[%emt 0:04:55]} Be7 {[%emt 0:03:59]} 27. Bd4 {[%emt 0:03:31]} Bb4 {[%emt 0:02:40]} 28. Rb2 {[%emt 0:02:04]} Ba5 {[%emt 0:00:12]} 29. Kg2 {[%emt 0:11:30]} f6 {[%emt 0:02:57]} 30. b6 {[%emt 0:04:34]} axb6 {[%emt 0:01:59]} 31. Bxb6 {[%emt 0:00:18]} Rb7 {[%emt 0:01:01]} 32. Rab1 {[%emt 0:00:29]} Rcb8 {[%emt 0:00:42]} 33. Bd4 {[%emt 0:00:13]} Rxb2 {[%emt 0:01:07]} 34. Rxb2 {[%emt 0:00:02]} Rxb2 {[%emt 0:00:57]} 35. Bxb2 {[%emt 0:00:02]} Bc4 {[%emt 0:01:27]} 36. Nd4 {[%emt 0:03:52]} Bd5 {[%emt 0:01:03]} 37. g4 {[%emt 0:01:09]} e5 {[%emt 0:01:52]} 38. Ne2 {[%emt 0:00:37]} Bc4 {[%emt 0:02:37]} 39. Nc3 {[%emt 0:00:50]} Bb3 {[%emt 0:02:02]} 40. Nxe4 {[%emt 0:00:42]} Bxa4 {[%emt 0:00:17]} 41. Kg3 {[%emt 0:30:23]} Bc6 {[%emt 0:31:04]} 42. f3 {[%emt 0:02:02]} Bb6 {[%emt 0:00:00]} 43. Kf2 {[%emt 0:00:00]} Kf7 {[%emt 0:00:00]} 1/2-1/2

[Event "106th British-ch Major 2019"]
[Site "Torquay"]
[Date "2019.07.31"]
[Round "5.20"]
[White "Young, Daniel J"]
[Black "Sheerin, Alex"]
[Result "0-1"]
[ECO "B77"]
[WhiteElo "1971"]
[BlackElo "1845"]
[Annotator "NA"]
[PlyCount "64"]
[EventDate "2019.07.27"]
[EventType "swiss"]
[EventCountry "GBR"]
[SourceTitle "playchess.com"]
[Source "ChessBase"]
[SourceQuality "1"]
[TimeControl "40/5400+30:1800+30"]

1. e4 {[%emt 0:00:00]} c5 {[%emt 0:00:00]} 2. Nf3 {[%emt 0:00:47]} d6 {[%emt 0:00:00]} 3. d4 {[%emt 0:00:14]} cxd4 {[%emt 0:00:00]} 4. Nxd4 {[%emt 0:00:10]} Nf6 {[%emt 0:00:00]} 5. Nc3 {[%emt 0:00:11]} g6 {[%emt 0:00:00]} 6. Be3 {[%emt 0:00:09]} Bg7 {[%emt 0:00:00]} 7. f3 {[%emt 0:00:15]} Nc6 {[%emt 0:00:26]} 8. Qd2 {[%emt 0:00:16]} O-O {[%emt 0:00:45]} 9. Bc4 {[%emt 0:00:13]} Bd7 {[%emt 0:00:06]} 10. O-O-O {[%emt 0:00:25]} Rb8 {[%emt 0:00:14]} 11. Bb3 {[%emt 0:01:23]} Na5 {[%emt 0:02:01]} 12. Bh6 {[%emt 0:04:03]} Bxh6 {[%emt 0:02:14]} 13. Qxh6 {[%emt 0:00:11]} e5 {[%emt 0:00:11]} 14. Nde2 {[%emt 0:00:33]} Nxb3+ {[%emt 0:00:12]} 15. cxb3 {[%emt 0:00:57]} b5 {[%emt 0:02:36]} 16. Kb1 {[%emt 0:15:26]} b4 {[%emt 0:01:19]} 17. Nd5 {[%emt 0:00:45]} Nxd5 {[%emt 0:00:29]} 18. Rxd5 {[%emt 0:00:23]} Be6 {[%emt 0:00:32]} 19. Rd2 {[%emt 0:02:40]} Rb6 {[%emt 0:02:38]} 20. Rhd1 {[%emt 0:03:49]} Ra6 {[%emt 0:02:24]} 21. Nc1 {[%emt 0:04:16]} d5 {[%emt 0:03:41]} 22. exd5 {[%emt 0:04:24]} Bf5+ {[%emt 0:01:36]} 23. Ka1 {[%emt 0:00:17]} Qa5 {[%emt 0:00:50]} 24. g4 {[%emt 0:18:29]} Rc8 {[%emt 0:01:10]} 25. a3 {[%emt 0:02:08]} bxa3 {[%emt 0:00:17]} 26. Na2 {[%emt 0:02:17]} Bc2 {[%emt 0:07:12]} 27. Rb1 {[%emt 0:07:46]} Bxb3 {[%emt 0:05:03]} 28. bxa3 {[%emt 0:04:33]} Qxa3 {[%emt 0:01:22]} 29. Rxb3 {[%emt 0:00:31]} Qxb3 {[%emt 0:00:07]} 30. Rb2 {[%emt 0:01:00]} Qd1+ {[%emt 0:01:00]} 31. Rb1 {[%emt 0:00:18]} Qd4+ {[%emt 0:00:21]} 32. Rb2 {[%emt 0:00:15]} Rc2 {[%emt 0:00:24]} 0-1

[Event "106th British-ch Major 2019"]
[Site "Torquay"]
[Date "2019.07.31"]
[Round "5.21"]
[White "Fathallah, Joe"]
[Black "Howell, Oliver W"]
[Result "1/2-1/2"]
[ECO "E87"]
[WhiteElo "1952"]
[BlackElo "1797"]
[Annotator "NA"]
[PlyCount "73"]
[EventDate "2019.07.27"]
[EventType "swiss"]
[EventCountry "GBR"]
[SourceTitle "playchess.com"]
[Source "ChessBase"]
[SourceQuality "1"]
[TimeControl "40/5400+30:1800+30"]

1. d4 {[%emt 0:00:00]} Nf6 {[%emt 0:00:00]} 2. c4 {[%emt 0:00:00]} g6 {[%emt 0:00:00]} 3. Nc3 {[%emt 0:00:00]} Bg7 {[%emt 0:00:06]} 4. e4 {[%emt 0:00:00]} d6 {[%emt 0:00:04]} 5. f3 {[%emt 0:00:04]} O-O {[%emt 0:00:20]} 6. Be3 {[%emt 0:00:03]} e5 {[%emt 0:00:14]} 7. d5 {[%emt 0:00:05]} Nh5 {[%emt 0:00:32]} 8. Qd2 {[%emt 0:00:45]} Qh4+ {[%emt 0:00:52]} 9. Qf2 {[%emt 0:08:11]} Qxf2+ {[%emt 0:01:53]} 10. Kxf2 {[%emt 0:02:18]} f5 {[%emt 0:01:36]} 11. g3 {[%emt 0:05:53]} Nf6 {[%emt 0:05:59]} 12. Kg2 {[%emt 0:01:07]} fxe4 {[%emt 0:03:15]} 13. Nxe4 {[%emt 0:00:19]} Nxe4 {[%emt 0:04:49]} 14. fxe4 {[%emt 0:00:09]} Nd7 {[%emt 0:00:57]} 15. Bd3 {[%emt 0:02:08]} b6 {[%emt 0:05:06]} 16. Nf3 {[%emt 0:03:55]} Nc5 {[%emt 0:01:05]} 17. Bc2 {[%emt 0:01:09]} a5 {[%emt 0:10:56]} 18. b3 {[%emt 0:01:01]} Bh3+ {[%emt 0:13:20]} 19. Kxh3 {[%emt 0:01:15]} Rxf3 {[%emt 0:00:51]} 20. Rae1 {[%emt 0:00:42]} Raf8 {[%emt 0:01:09]} 21. Kg2 {[%emt 0:05:44]} h6 {[%emt 0:07:56]} 22. Rhf1 {[%emt 0:01:14]} Rxf1 {[%emt 0:01:09]} 23. Rxf1 {[%emt 0:00:04]} Rxf1 {[%emt 0:01:18]} 24. Kxf1 {[%emt 0:00:19]} Kh7 {[%emt 0:07:00]} 25. a3 {[%emt 0:02:46]} Bf6 {[%emt 0:02:53]} 26. Ke2 {[%emt 0:01:13]} g5 {[%emt 0:04:20]} 27. Kd2 {[%emt 0:02:08]} Kg6 {[%emt 0:00:58]} 28. g4 {[%emt 0:01:35]} Kf7 {[%emt 0:03:36]} 29. b4 {[%emt 0:06:05]} axb4 {[%emt 0:04:06]} 30. axb4 {[%emt 0:00:07]} Nd7 {[%emt 0:01:46]} 31. Ba4 {[%emt 0:04:42]} Ke7 {[%emt 0:07:58]} 32. Bxd7 {[%emt 0:03:15]} Kxd7 {[%emt 0:00:15]} 33. Kc3 {[%emt 0:00:58]} Kc8 {[%emt 0:01:56]} 34. Kb3 {[%emt 0:08:44]} Kb7 {[%emt 0:00:15]} 35. Ka4 {[%emt 0:00:39]} Ka6 {[%emt 0:00:48]} 36. Bc1 {[%emt 0:02:20]} Be7 {[%emt 0:00:20]} 37. Be3 {[%emt 0:00:18]} 1/2-1/2

[Event "106th British-ch Major 2019"]
[Site "Torquay"]
[Date "2019.07.31"]
[Round "5.22"]
[White "Rushbrooke, Tibo"]
[Black "Ifalore, Michael"]
[Result "0-1"]
[ECO "A03"]
[WhiteElo "1700"]
[BlackElo "1907"]
[Annotator "NA"]
[PlyCount "54"]
[EventDate "2019.07.27"]
[EventType "swiss"]
[EventCountry "GBR"]
[SourceTitle "playchess.com"]
[Source "ChessBase"]
[SourceQuality "1"]
[TimeControl "40/5400+30:1800+30"]

1. f4 {[%emt 0:00:00]} d5 {[%emt 0:00:00]} 2. Nf3 {[%emt 0:00:00]} Nc6 {[%emt 0:00:00]} 3. e3 {[%emt 0:02:08]} Bg4 {[%emt 0:00:00]} 4. Be2 {[%emt 0:05:57]} Bxf3 {[%emt 0:00:15]} 5. Bxf3 {[%emt 0:00:11]} e5 {[%emt 0:00:02]} 6. fxe5 {[%emt 0:03:45]} Nxe5 {[%emt 0:00:05]} 7. O-O {[%emt 0:00:22]} Nf6 {[%emt 0:02:52]} 8. d3 {[%emt 0:16:26]} Bd6 {[%emt 0:02:13]} 9. Nd2 {[%emt 0:00:19]} Qe7 {[%emt 0:03:03]} 10. e4 {[%emt 0:07:06]} Nxf3+ {[%emt 0:01:19]} 11. Qxf3 {[%emt 0:00:52]} dxe4 {[%emt 0:00:04]} 12. Nxe4 {[%emt 0:00:46]} Nxe4 {[%emt 0:00:10]} 13. dxe4 {[%emt 0:00:38]} O-O-O {[%emt 0:00:09]} 14. Bf4 {[%emt 0:03:47]} Bc5+ {[%emt 0:00:49]} 15. Kh1 {[%emt 0:00:09]} Kb8 {[%emt 0:09:42]} 16. c3 {[%emt 0:06:53]} Rhe8 {[%emt 0:01:58]} 17. Rfe1 {[%emt 0:06:06]} f5 {[%emt 0:02:13]} 18. Qg3 {[%emt 0:07:26]} Qf7 {[%emt 0:17:51]} 19. exf5 {[%emt 0:01:06]} Rxe1+ {[%emt 0:00:04]} 20. Rxe1 {[%emt 0:00:24]} Bb6 {[%emt 0:00:14]} 21. Qg4 {[%emt 0:10:39]} a6 {[%emt 0:01:50]} 22. a4 {[%emt 0:04:45]} h5 {[%emt 0:15:38]} 23. Qg6 {[%emt 0:13:41]} Qc4 {[%emt 0:00:40]} 24. Be5 {[%emt 0:01:15]} Qe2 {[%emt 0:00:38]} 25. Bg3 {[%emt 0:02:33]} Rd1 {[%emt 0:00:29]} 26. Qxb6 {[%emt 0:01:31]} Rxe1+ {[%emt 0:00:07]} 27. Bxe1 {[%emt 0:00:08]} cxb6 {[%emt 0:00:49]} 0-1